fUST/lending_fUST_20250611
["ID","MTS","AMOUNT","RATE_DAILY","PERIOD"]
[365338340,1749607833685,-437.66909897,0.00021095,4]
[365338341,1749607833695,-476.1684838,0.00021095,4]
[365338342,1749607833704,-491.97667047,0.00021095,4]
[365338343,1749607833715,-448.22859099,0.00021095,4]
[365338344,1749607833727,-408.97697169,0.00021095,4]
[365338345,1749607833736,-460.0,0.00021095,4]
[365338346,1749607833746,-532.080183,0.00021095,4]
[365338347,1749607833756,-439.82143113,0.00021095,4]
[365338348,1749607833766,-243.28364743,0.00021095,4]
[365338349,1749607833775,-460.02434703,0.00021095,4]
[365338350,1749607833785,-460.0,0.00021095,4]
[365338351,1749607833795,-430.0,0.00021095,4]
[365338352,1749607833805,-431.76974498,0.00021095,4]
[365338353,1749607833815,-458.02344617,0.00021095,4]
[365338354,1749607833824,-462.95736559,0.00021095,4]
[365338355,1749607833834,-435.37149927,0.00021095,4]
[365338356,1749607833843,-463.04626393,0.00021095,4]
[365338357,1749607833853,-433.34141507,0.00021095,4]
[365338358,1749607833863,-433.68641356,0.00021095,4]
[365338359,1749607833872,-440.09015179,0.00021095,4]
[365338360,1749607833881,-430.63674305,0.00021095,4]
[365338361,1749607833891,-447.98789211,0.00021095,4]
[365338362,1749607833901,-448.82674647,0.00021095,4]
[365338363,1749607833911,-444.9270001,0.00021095,4]
[365338364,1749607833921,-445.94827132,0.00021095,4]
[365338365,1749607833932,-432.81081136,0.00021095,4]
[365338366,1749607833942,-410.3011134,0.00021095,4]
[365338367,1749607833951,-435.86581164,0.00021095,4]
[365338368,1749607833961,-440.72049431,0.00021095,4]
[365338369,1749607833971,-481.55645065,0.00021095,4]
[365338370,1749607833981,-445.99245452,0.00021095,4]
[365338371,1749607833990,-436.06525316,0.00021095,4]
[365338372,1749607833999,-455.41596261,0.00021095,4]
[365338373,1749607834010,-500.97037349,0.00021095,4]
[365338374,1749607834020,-410.09755956,0.00021095,4]
[365338375,1749607834029,-402.69802179,0.00021095,4]
[365338376,1749607834038,-451.79237619,0.00021095,4]
[365338377,1749607834047,-451.41473392,0.00021095,4]
[365338378,1749607834057,-458.58149068,0.00021095,4]
[365338379,1749607834066,-439.93933607,0.00021095,4]
[365338380,1749607834075,-447.38132384,0.00021095,4]
[365338381,1749607834085,-448.80394733,0.00021095,4]
[365338382,1749607834094,-445.03257193,0.00021095,4]
[365338383,1749607834219,-454.75359994,0.00021095,4]
[365338384,1749607834230,-522.96473222,0.00021095,4]
[365338385,1749607834239,-455.86270399,0.00021095,4]
[365338386,1749607834249,-444.02941701,0.00021095,4]
[365338387,1749607834258,-460.0,0.00021095,4]
[365338388,1749607834268,-423.01545147,0.00021095,4]
[365338389,1749607834278,-460.0,0.00021095,4]
[365338390,1749607834288,-460.0,0.00021095,4]
[365338391,1749607834297,-426.2586886,0.00021095,4]
[365338392,1749607834308,-451.98373064,0.00021095,4]
[365338393,1749607834318,-460.0,0.00021095,4]
[365338394,1749607834327,-425.08298889,0.00021095,4]
[365338395,1749607834337,-244.91653723,0.00021095,4]
[365338396,1749607834347,-428.46321594,0.00021095,4]
[365338397,1749607834357,-201.42666177,0.00021095,4]
[365338398,1749607834367,-422.68183697,0.00021095,4]
[365338399,1749607834377,-451.66119523,0.00021095,4]
[365338400,1749607834387,-460.0,0.00021095,4]
[365338401,1749607834396,-434.46327709,0.00021095,4]
[365338402,1749607834406,-426.35056908,0.00021095,4]
[365338403,1749607834415,-467.19148395,0.00021095,4]
[365338404,1749607834425,-460.39295255,0.00021095,4]
[365338405,1749607834435,-460.0,0.00021095,4]
[365338406,1749607834444,-422.9606257,0.00021095,4]
[365338407,1749607834454,-445.17141769,0.00021095,4]
[365338408,1749607834464,-486.04847045,0.00021095,4]
[365338409,1749607834474,-881.46,0.00021095,4]
[365338410,1749607834484,-460.0,0.00021095,4]
[365338411,1749607834494,-470.36572957,0.00021095,4]
[365338412,1749607834504,-471.91536304,0.00021095,4]
[365338413,1749607834514,-452.33745152,0.00021095,4]
[365338414,1749607834524,-476.53886641,0.00021095,4]
[365338415,1749607834534,-483.19407901,0.00021095,4]
[365338416,1749607834543,-444.87275625,0.00021095,4]
[365338417,1749607834553,-453.9084431,0.00021095,4]
[365338418,1749607834563,-1314.89,0.00021095,4]
[365338419,1749607834573,-500.0,0.00021095,4]
[365338420,1749607834582,-571.37990682,0.00021095,4]
[365338421,1749607834592,-259.57692072,0.00021095,4]
[365338422,1749607834602,-2798.12,0.00021095,4]
[365338423,1749607834611,-457.3358578,0.00021095,4]
[365338424,1749607834621,-460.0,0.00021095,4]
[365338425,1749607834631,-460.0,0.00021095,4]
[365338426,1749607834640,-460.0,0.00021095,4]
[365338427,1749607834650,-509.45,0.00021095,4]
[365338428,1749607834659,-875.38,0.00021095,4]
[365338429,1749607834669,-464.27859363,0.00021095,4]
[365338430,1749607834678,-474.79497853,0.00021095,4]
[365338431,1749607834689,-456.74845399,0.00021095,4]
[365338432,1749607834699,-482.38510764,0.00021095,4]
[365338433,1749607834708,-457.05108035,0.00021095,4]
[365338434,1749607834718,-455.17858799,0.00021095,4]
[365338435,1749607834730,-460.0,0.00021095,4]
[365338436,1749607834740,-452.92216232,0.00021095,4]
[365338437,1749607834750,-432.2943854,0.00021095,4]
[365338438,1749607834759,-445.44567713,0.00021095,4]
[365338439,1749607834769,-434.42236886,0.00021095,4]
[365338440,1749607834779,-461.57675266,0.00021095,4]
[365338441,1749607834789,-460.0,0.00021095,4]
[365338442,1749607834799,-435.2154113,0.00021095,4]
[365338443,1749607834811,-481.1685861,0.00021095,4]
[365338444,1749607834822,-444.31452253,0.00021095,4]
[365338445,1749607834831,-504.83014979,0.00021095,4]
[365338446,1749607834840,-447.56786573,0.00021095,4]
[365338447,1749607834850,-460.0,0.00021095,4]
[365338448,1749607834859,-460.0,0.00021095,2]
[365338449,1749607834869,-461.19406347,0.00021095,4]
[365338450,1749607834878,-460.52228652,0.00021095,4]
[365338451,1749607834888,-547.14429282,0.00021095,4]
[365338452,1749607834897,-3001.13,0.00021095,4]
[365338453,1749607834907,-481.49906672,0.00021095,4]
[365338454,1749607834915,-458.76082347,0.00021095,4]
[365338455,1749607834924,-606.07,0.00021095,4]
[365338456,1749607834935,-2288.9,0.00021095,4]
[365338457,1749607834946,-447.30854949,0.00021095,4]
[365338458,1749607834957,-447.76040466,0.00021095,4]
[365338459,1749607834967,-481.73356989,0.00021095,4]
[365338460,1749607834976,-452.69047179,0.00021095,4]
[365338461,1749607834985,-460.0,0.00021095,4]
[365338462,1749607834994,-1292.88,0.00021095,4]
[365338463,1749607835004,-478.4387018,0.00021095,4]
[365338464,1749607835013,-460.0,0.00021095,4]
[365338465,1749607835022,-444.53530368,0.00021095,4]
[365338466,1749607835031,-460.0,0.00021095,4]
[365338467,1749607835041,-1257.13,0.00021095,4]
[365338468,1749607835050,-1182.42,0.00021095,4]
[365338469,1749607835059,-2763.07,0.00021095,4]
[365338470,1749607835069,-474.70277475,0.00021095,4]
[365338471,1749607835078,-460.0,0.00021095,4]
[365338472,1749607835087,-460.0,0.00021095,4]
[365338473,1749607835097,-273.81292573,0.00021095,4]
[365338474,1749607835107,-458.7841643,0.00021095,4]
[365338475,1749607835116,-449.14896378,0.00021095,4]
[365338476,1749607835125,-446.09342172,0.00021095,4]
[365338477,1749607835135,-460.0,0.00021095,4]
[365338478,1749607835144,-1698.94,0.00021095,4]
[365338479,1749607835154,-460.0,0.00021095,4]
[365338480,1749607835163,-460.0,0.00021095,4]
[365338481,1749607835173,-2572.08,0.00021095,4]
[365338482,1749607835182,-1212.74,0.00021095,4]
[365338483,1749607835192,-484.54149096,0.00021095,4]
[365338484,1749607835202,-1250.24,0.00021095,4]
[365338485,1749607835211,-468.82965598,0.00021095,4]
[365338486,1749607835222,-445.12006823,0.00021095,4]
[365338487,1749607835231,-457.4879203,0.00021095,4]
[365338488,1749607835240,-486.71780289,0.00021095,4]
[365338489,1749607835250,-468.99509335,0.00021095,4]
[365338490,1749607835259,-747.42,0.00021095,4]
[365338491,1749607835269,-458.06887411,0.00021095,4]
[365338492,1749607835279,-229.74468648,0.00021095,4]
[365338493,1749607835288,-364.9974737,0.00021123,2]
[365338494,1749607835299,-151.0,0.00021177,4]
[365338495,1749607835308,-227.39227648,0.00021177,4]
[365338496,1749607835318,-203.83967504,0.00021177,4]
[365338497,1749607835327,-151.0,0.00021177,4]
[365338498,1749607835338,-233.25178872,0.00021177,4]
[365338499,1749607835347,-178.89845956,0.00021204,4]
[365338500,1749607835356,-153.82155457,0.00021204,4]
[365338501,1749607835370,-549.27231613,0.00021369,4]
[365338502,1749607835383,-460.0,0.00021369,4]
[365338503,1749607835396,-461.48544405,0.00021369,4]
[365338504,1749607835410,-275.98122966,0.00021369,4]
[365338505,1749607835423,-460.0,0.00021369,4]
[365338506,1749607835435,-460.0,0.00021369,4]
[365338507,1749607835448,-460.0,0.00021369,4]
[365338508,1749607835461,-460.0,0.00021369,4]
[365338509,1749607835472,-881.46,0.00021369,4]
[365338510,1749607835484,-460.0,0.00021369,4]
[365338511,1749607835497,-1314.89,0.00021369,4]
[365338512,1749607835508,-2798.12,0.00021369,4]
[365338513,1749607835521,-403.65088534,0.00021369,4]
[365338514,1749607835533,-460.0,0.00021369,4]
[365338515,1749607835545,-460.0,0.00021369,4]
[365338516,1749607835560,-509.45,0.00021369,4]
[365338517,1749607835572,-875.38,0.00021369,4]
[365338518,1749607835583,-460.0,0.00021369,4]
[365338519,1749607835595,-493.10391038,0.00021369,4]
[365338520,1749607835607,-460.0,0.00021369,4]
[365338521,1749607835618,-384.07303135,0.00021369,2]
[365338522,1749607835629,-3001.13,0.00021369,4]
[365338523,1749607835642,-2288.9,0.00021369,4]
[365338524,1749607835655,-606.07,0.00021369,4]
[365338525,1749607835667,-460.0,0.00021369,4]
[365338526,1749607835678,-1292.88,0.00021369,4]
[365338527,1749607835690,-460.0,0.00021369,4]
[365338528,1749607835700,-508.93741099,0.00021369,4]
[365338529,1749607835712,-1257.13,0.00021369,4]
[365338530,1749607835728,-1182.42,0.00021369,4]
[365338531,1749607835739,-2763.07,0.00021369,4]
[365338532,1749607835751,-460.0,0.00021369,4]
[365338533,1749607835764,-460.0,0.00021369,4]
[365338534,1749607835775,-460.0,0.00021369,4]
[365338535,1749607835788,-1698.94,0.00021369,4]
[365338536,1749607835801,-460.0,0.00021369,4]
[365338537,1749607835814,-460.0,0.00021369,4]
[365338538,1749607835827,-2572.08,0.00021369,4]
[365338539,1749607835839,-1212.74,0.00021369,4]
[365338540,1749607835851,-1250.24,0.00021369,4]
[365338541,1749607835863,-747.42,0.00021369,4]
[365338542,1749607835874,-165.89792811,0.0002158,2]
[365338543,1749607835884,-1047.28,0.000216,2]
[365338544,1749607835894,-1000.0,0.00021621,2]
[365338545,1749607835904,-400.0,0.00021637,4]
[365338546,1749607835915,-403.01233677,0.00021637,4]
[365338547,1749607835927,-441.47228451,0.00021637,4]
[365338548,1749607835939,-275.02419092,0.00021637,4]
[365338549,1749607835953,-440.0,0.00021637,4]
[365338550,1749607835967,-441.00101755,0.00021637,4]
[365338551,1749607835978,-444.21706211,0.00021637,4]
[365338552,1749607835988,-460.0,0.00021643,4]
[365338553,1749607836000,-460.0,0.00021643,4]
[365338554,1749607836011,-460.0,0.00021643,4]
[365338555,1749607836024,-460.0,0.00021643,4]
[365338556,1749607836036,-460.0,0.00021643,4]
[365338557,1749607836047,-881.46,0.00021643,4]
[365338558,1749607836059,-460.0,0.00021643,4]
[365338559,1749607836070,-1314.89,0.00021643,4]
[365338560,1749607836081,-1590.91478928,0.00021643,4]
[365338570,1749607838653,-460.0,0.00021095,4]
[365338572,1749607838663,-1207.20521072,0.00021643,4]
[365338573,1749607838672,-460.0,0.00021643,4]
[365338574,1749607838682,-460.0,0.00021643,4]
[365338575,1749607838692,-509.45,0.00021643,4]
[365338576,1749607838702,-875.38,0.00021643,4]
[365338577,1749607838711,-514.66560302,0.00021643,4]
[365338578,1749607838721,-460.0,0.00021643,4]
[365338579,1749607838735,-611.35250065,0.00021643,4]
[365338580,1749607838896,-304.46844193,0.00021643,4]
[365338581,1749607838912,-2085.30905742,0.00021643,4]
[365338582,1749607838923,-2288.9,0.00021643,4]
[365338583,1749607838933,-606.07,0.00021643,4]
[365338584,1749607838943,-460.0,0.00021643,4]
[365338585,1749607838952,-1292.88,0.00021643,4]
[365338586,1749607838963,-490.15188869,0.00021643,4]
[365338587,1749607838972,-1257.13,0.00021643,4]
[365338588,1749607838982,-1182.42,0.00021643,4]
[365338589,1749607838990,-2763.07,0.00021643,4]
[365338590,1749607839000,-522.52232137,0.00021643,4]
[365338591,1749607839010,-460.0,0.00021643,4]
[365338592,1749607839020,-295.86137314,0.00021643,4]
[365338593,1749607839029,-1698.94,0.00021643,4]
[365338594,1749607839039,-460.0,0.00021643,4]
[365338595,1749607839048,-460.0,0.00021643,4]
[365338596,1749607839059,-2572.08,0.00021643,4]
[365338597,1749607839069,-1212.74,0.00021643,4]
[365338598,1749607839079,-1250.24,0.00021643,4]
[365338599,1749607839088,-747.42,0.00021643,4]
[365338600,1749607839098,-151.1861261,0.00021673,2]
[365338601,1749607839107,-615.66,0.000217,2]
[365338602,1749607839116,-39450.0,0.000218,2]
[365338603,1749607839125,-9554.64499948,0.000219,6]
[365338604,1749607839135,-1744.0,0.00021909,2]
[365338605,1749607839144,-1744.0,0.00021909,2]
[365338606,1749607839152,-1744.0,0.00021909,2]
[365338607,1749607839162,-460.0,0.00021917,4]
[365338608,1749607839171,-505.39681538,0.00021917,2]
[365338609,1749607839180,-460.0,0.00021917,4]
[365338610,1749607839191,-460.0,0.00021917,4]
[365338611,1749607839200,-460.0,0.00021917,4]
[365338612,1749607839209,-500.0,0.00021917,2]
[365338613,1749607839219,-500.0,0.00021917,2]
[365338614,1749607839229,-500.0,0.00021917,2]
[365338615,1749607839238,-500.0,0.00021917,2]
[365338616,1749607839247,-460.0,0.00021917,4]
[365338617,1749607839257,-460.0,0.00021917,4]
[365338618,1749607839266,-500.0,0.00021917,4]
[365338619,1749607839276,-500.0,0.00021917,4]
[365338620,1749607839285,-500.0,0.00021917,4]
[365338621,1749607839296,-500.0,0.00021917,4]
[365338622,1749607839305,-1314.89,0.00021917,4]
[365338623,1749607839315,-2798.12,0.00021917,4]
[365338624,1749607839324,-460.0,0.00021917,4]
[365338625,1749607839334,-460.0,0.00021917,4]
[365338626,1749607839343,-509.45,0.00021917,4]
[365338627,1749607839352,-875.38,0.00021917,4]
[365338628,1749607839362,-460.0,0.00021917,4]
[365338629,1749607839371,-3001.13,0.00021917,4]
[365338630,1749607839381,-2288.9,0.00021917,4]
[365338631,1749607839391,-606.07,0.00021917,4]
[365338632,1749607839400,-460.0,0.00021917,4]
[365338633,1749607839409,-1292.88,0.00021917,4]
[365338634,1749607839419,-1257.13,0.00021917,4]
[365338635,1749607839428,-1182.42,0.00021917,4]
[365338636,1749607839437,-2763.07,0.00021917,4]
[365338637,1749607839447,-460.0,0.00021917,4]
[365338638,1749607839457,-1698.94,0.00021917,4]
[365338639,1749607839466,-460.0,0.00021917,4]
[365338640,1749607839475,-215.32730065,0.00021917,4]
[365338641,1749607839484,-2572.08,0.00021917,4]
[365338642,1749607839493,-1212.74,0.00021917,4]
[365338643,1749607839502,-1250.24,0.00021917,4]
[365338644,1749607839511,-747.42,0.00021917,4]
[365338645,1749607839521,-270.85111245,0.00021918,2]
[365338646,1749607839530,-151.0,0.00021918,2]
[365338647,1749607839539,-151.0,0.00021918,2]
[365338648,1749607839548,-171.0,0.00021918,2]
[365338649,1749607839558,-43955.32,0.00022,7]
[365338650,1749607839567,-1508.65,0.00022,7]
[365338651,1749607839576,-36948.28,0.00022,2]
[365338652,1749607839586,-213.16534259,0.00022,7]
[365338653,1749607839595,-9554.64499922,0.00022003,6]
[365338654,1749607839604,-9554.64499922,0.00022107,6]
[365338655,1749607839614,-700.0,0.0002216,2]
[365338656,1749607839624,-587.54209348,0.00022168,2]
[365338657,1749607839633,-165.89792811,0.00022171,2]
[365338658,1749607839643,-460.0,0.00022191,4]
[365338659,1749607839652,-460.0,0.00022191,4]
[365338660,1749607839665,-460.0,0.00022191,4]
[365338661,1749607839679,-460.0,0.00022191,4]
[365338662,1749607839697,-500.0,0.00022191,2]
[365338663,1749607839709,-460.0,0.00022191,4]
[365338664,1749607839720,-460.0,0.00022191,4]
[365338665,1749607839733,-500.0,0.00022191,4]
[365338666,1749607839742,-1314.89,0.00022191,4]
[365338667,1749607839752,-2798.12,0.00022191,4]
[365338668,1749607839761,-460.0,0.00022191,4]
[365338669,1749607839770,-460.0,0.00022191,4]
[365338670,1749607839780,-509.45,0.00022191,4]
[365338671,1749607839789,-875.38,0.00022191,4]
[365338672,1749607839799,-460.0,0.00022191,4]
[365338673,1749607839808,-3001.13,0.00022191,4]
[365338674,1749607839818,-2288.9,0.00022191,4]
[365338675,1749607839827,-606.07,0.00022191,4]
[365338676,1749607839836,-460.0,0.00022191,4]
[365338677,1749607839846,-1292.88,0.00022191,4]
[365338678,1749607839861,-1257.13,0.00022191,4]
[365338679,1749607839870,-1182.42,0.00022191,4]
[365338680,1749607839880,-2763.07,0.00022191,4]
[365338681,1749607839890,-460.0,0.00022191,4]
[365338682,1749607839899,-1698.94,0.00022191,4]
[365338683,1749607839908,-460.0,0.00022191,4]
[365338684,1749607839917,-1212.74,0.00022191,4]
[365338685,1749607839927,-2572.08,0.00022191,4]
[365338686,1749607839936,-1250.24,0.00022191,4]
[365338687,1749607839949,-747.42,0.00022191,4]
[365338688,1749607839958,-729.75,0.000222,2]
[365338689,1749607839968,-9554.64499922,0.0002221,6]
[365338690,1749607839977,-223.0,0.0002223,2]
[365338691,1749607839986,-160.67539232,0.00022271,2]
[365338692,1749607839995,-729.75,0.000223,2]
[365338693,1749607840005,-9554.64499922,0.00022314,7]
[365338694,1749607840014,-729.75,0.000224,4]
[365338695,1749607840024,-9554.64499922,0.00022417,7]
[365338696,1749607840033,-306.62,0.00022463,2]
[365338697,1749607840042,-460.0,0.00022465,4]
[365338698,1749607840051,-460.0,0.00022465,4]
[365338699,1749607840064,-460.0,0.00022465,4]
[365338700,1749607840075,-460.0,0.00022465,4]
[365338701,1749607840087,-500.0,0.00022465,2]
[365338702,1749607840099,-460.0,0.00022465,4]
[365338703,1749607840108,-460.0,0.00022465,4]
[365338704,1749607840118,-500.0,0.00022465,4]
[365338705,1749607840127,-1314.89,0.00022465,4]
[365338706,1749607840139,-2798.12,0.00022465,4]
[365338707,1749607840148,-460.0,0.00022465,4]
[365338708,1749607840158,-460.0,0.00022465,4]
[365338709,1749607840168,-509.45,0.00022465,4]
[365338710,1749607840177,-875.38,0.00022465,4]
[365338711,1749607840186,-460.0,0.00022465,4]
[365338712,1749607840196,-3001.13,0.00022465,4]
[365338713,1749607840205,-2288.9,0.00022465,4]
[365338714,1749607840215,-606.07,0.00022465,4]
[365338715,1749607840224,-460.0,0.00022465,4]
[365338716,1749607840235,-1292.88,0.00022465,4]
[365338717,1749607840244,-1257.13,0.00022465,4]
[365338718,1749607840254,-1182.42,0.00022465,4]
[365338719,1749607840264,-2763.07,0.00022465,4]
[365338720,1749607840273,-460.0,0.00022465,4]
[365338721,1749607840282,-1698.94,0.00022465,4]
[365338722,1749607840292,-460.0,0.00022465,4]
[365338723,1749607840301,-1212.74,0.00022465,4]
[365338724,1749607840311,-2572.08,0.00022465,4]
[365338725,1749607840320,-1250.24,0.00022465,4]
[365338726,1749607840329,-747.42,0.00022465,4]
[365338727,1749607840339,-500.0,0.00022492,2]
[365338728,1749607840349,-614.94492234,0.00022492,2]
[365338729,1749607840358,-500.0,0.00022492,2]
[365338730,1749607840367,-307.9447424,0.00022493,2]
[365338731,1749607840377,-1156.4994341,0.00022493,2]
[365338732,1749607840387,-429.45978774,0.000225,2]
[365338733,1749607840396,-729.75,0.000225,2]
[365338734,1749607840406,-9554.64499922,0.00022521,7]
[365338735,1749607840415,-1396.38,0.00022539,2]
[365338736,1749607840425,-729.75,0.000226,4]
[365338737,1749607840435,-9554.64499922,0.00022624,7]
[365338738,1749607840447,-729.75,0.000227,2]
[365338739,1749607840456,-424.19973472,0.00022706,2]
[365338740,1749607840466,-842.5625,0.00022706,2]
[365338741,1749607840475,-229.71724145,0.00022706,2]
[365338742,1749607840484,-160.0,0.00022706,2]
[365338743,1749607840494,-213.16534259,0.00022706,2]
[365338744,1749607840503,-160.0,0.00022706,2]
[365338745,1749607840513,-160.0,0.00022706,2]
[365338746,1749607840522,-160.0,0.00022706,2]
[365338747,1749607840532,-835.03886221,0.00022706,2]
[365338748,1749607840541,-160.0,0.00022708,2]
[365338749,1749607840550,-160.0,0.00022708,2]
[365338750,1749607840559,-160.0,0.00022708,2]
[365338751,1749607840568,-160.0,0.00022708,2]
[365338752,1749607840578,-9554.64499922,0.00022728,7]
[365338753,1749607840587,-152.070046,0.00022728,7]
[365338754,1749607840596,-152.962357,0.00022728,7]
[365338755,1749607840605,-460.0,0.00022739,4]
[365338756,1749607840615,-460.0,0.00022739,4]
[365338757,1749607840624,-460.0,0.00022739,4]
[365338758,1749607840633,-460.0,0.00022739,4]
[365338759,1749607840643,-500.0,0.00022739,2]
[365338760,1749607840652,-460.0,0.00022739,4]
[365338761,1749607840662,-460.0,0.00022739,4]
[365338762,1749607840672,-500.0,0.00022739,4]
[365338763,1749607840682,-1314.89,0.00022739,4]
[365338764,1749607840693,-2798.12,0.00022739,4]
[365338765,1749607840703,-460.0,0.00022739,4]
[365338766,1749607840712,-460.0,0.00022739,4]
[365338767,1749607840724,-509.45,0.00022739,4]
[365338768,1749607840733,-875.38,0.00022739,4]
[365338769,1749607840743,-460.0,0.00022739,4]
[365338770,1749607840752,-3001.13,0.00022739,4]
[365338772,1749607840762,-2288.9,0.00022739,4]
[365338774,1749607840771,-606.07,0.00022739,4]
[365338775,1749607840781,-460.0,0.00022739,4]
[365338776,1749607840791,-1292.88,0.00022739,4]
[365338777,1749607840801,-1257.13,0.00022739,4]
[365338778,1749607840810,-1182.42,0.00022739,4]
[365338779,1749607840820,-2763.07,0.00022739,4]
[365338780,1749607840829,-460.0,0.00022739,4]
[365338781,1749607840838,-1698.94,0.00022739,4]
[365338782,1749607840847,-460.0,0.00022739,4]
[365338783,1749607840857,-2572.08,0.00022739,4]
[365338784,1749607840867,-1212.74,0.00022739,4]
[365338785,1749607840876,-1250.24,0.00022739,4]
[365338786,1749607840886,-747.42,0.00022739,4]
[365338787,1749607840895,-165.89792811,0.00022761,2]
[365338788,1749607840905,-729.75,0.000228,4]
[365338789,1749607840914,-151.0,0.00022831,7]
[365338790,1749607840924,-9554.64499922,0.00022831,8]
[365338791,1749607840933,-151.0,0.000229,8]
[365338792,1749607840946,-729.75,0.000229,2]
[365338793,1749607840955,-420.0,0.00022926,2]
[365338794,1749607840965,-420.0,0.00022928,2]
[365338795,1749607840974,-9554.64499922,0.00022934,8]
[365338796,1749607840983,-615.66,0.00023,7]
[365338797,1749607840993,-36948.28,0.00023,2]
[365338798,1749607841003,-729.75,0.00023,3]
[365338799,1749607841012,-460.0,0.00023013,4]
[365338800,1749607841021,-460.0,0.00023013,4]
[365338801,1749607841031,-460.0,0.00023013,4]
[365338802,1749607841040,-304.46883553,0.00023013,4]
[365338803,1749607841050,-500.0,0.00023013,2]
[365338804,1749607841059,-460.0,0.00023013,4]
[365338805,1749607841068,-460.0,0.00023013,4]
[365338806,1749607841077,-500.0,0.00023013,4]
[365338807,1749607841086,-1314.89,0.00023013,4]
[365338808,1749607841095,-2798.12,0.00023013,4]
[365338809,1749607841105,-460.0,0.00023013,4]
[365338810,1749607841114,-460.0,0.00023013,4]
[365338811,1749607841124,-509.45,0.00023013,4]
[365338812,1749607841133,-875.38,0.00023013,4]
[365338813,1749607841143,-460.0,0.00023013,4]
[365338814,1749607841152,-3001.13,0.00023013,4]
[365338815,1749607841161,-2288.9,0.00023013,4]
[365338816,1749607841170,-606.07,0.00023013,4]
[365338817,1749607841180,-460.0,0.00023013,4]
[365338818,1749607841189,-1292.88,0.00023013,4]
[365338819,1749607841200,-1257.13,0.00023013,4]
[365338820,1749607841209,-1182.42,0.00023013,4]
[365338821,1749607841219,-2763.07,0.00023013,4]
[365338822,1749607841229,-369.4868992,0.00023013,4]
[365338823,1749607841239,-1698.94,0.00023013,4]
[365338824,1749607841248,-460.0,0.00023013,4]
[365338825,1749607841258,-2572.08,0.00023013,4]
[365338826,1749607841267,-1212.74,0.00023013,4]
[365338827,1749607841276,-1250.24,0.00023013,4]
[365338828,1749607841286,-747.42,0.00023013,4]
[365338829,1749607841295,-736.2225651,0.00023014,2]
[365338830,1749607841304,-729.9949474,0.00023014,2]
[365338831,1749607841314,-9554.64499922,0.00023038,8]
[365338832,1749607841323,-364.9974737,0.00023041,2]
[365338833,1749607841333,-364.9974737,0.00023041,2]
[365338834,1749607841342,-364.9974737,0.00023041,2]
[365338835,1749607841351,-364.9974737,0.00023041,2]
[365338836,1749607841360,-364.9974737,0.00023041,2]
[365338837,1749607841370,-364.9974737,0.00023041,2]
[365338838,1749607841379,-364.9974737,0.00023041,2]
[365338839,1749607841388,-342.8759297,0.00023041,2]
[365338840,1749607841398,-207.4,0.0002308,2]
[365338841,1749607841407,-841.10451232,0.0002308,2]
[365338842,1749607841417,-5000.0,0.0002308,2]
[365338843,1749607841427,-1508.65,0.000231,7]
[365338844,1749607841437,-729.75,0.000231,7]
[365338846,1749607841447,-151.0,0.00023141,7]
[365338847,1749607841456,-151.0,0.00023141,7]
[365338848,1749607841466,-151.0,0.00023141,7]
[365338849,1749607841475,-151.0,0.00023141,7]
[365338850,1749607841485,-151.0,0.00023141,7]
[365338851,1749607841494,-556.70875,0.00023141,7]
[365338852,1749607841503,-556.70875,0.00023141,7]